bitfinex-derivatives/quotes_ETHF0:USTF0_20250403
["timestamp","ask_amount","ask_price","bid_price","bid_amount"]
[1743704359176,1.12955,1771.1,1771.0,42.2976]
[1743704359369,1.12955,1771.1,1771.0,43.42722]
[1743704359569,1.12955,1771.1,1771.0,42.2976]
[1743704359769,1.12955,1771.1,1771.0,43.42722]
[1743704360366,1.12954,1771.2,1771.1,1.12952]
[1743704360572,1.12954,1771.2,1771.1,4.33732]
[1743704360769,1.12954,1771.2,1771.1,3.2078]
[1743704361367,1.12954,1771.2,1771.1,4.6186]
[1743704361780,1.12954,1771.2,1771.1,5.74815]
[1743704362183,1.4738,1771.3,1771.0,40.8]
[1743704362481,1.12962,1771.0,1770.9,5.74828]
[1743704362780,1.5164,1771.1,1771.0,1.12962]
[1743704362781,2.64599,1771.1,1771.0,1.12962]
[1743704362984,2.64599,1771.1,1771.0,2.54042]
[1743704363178,2.64599,1771.1,1771.0,2.12676895]
[1743704363568,1.12959,1771.1,1771.0,3.25638895]
[1743704363774,1.12955,1771.2,1771.1,1.12952]
[1743704363978,1.12955,1771.1,1771.0,0.71596895]
[1743704364175,2.64475,1771.1,1771.0,0.71596895]
[1743704364580,2.64475,1771.1,1771.0,2.20866895]
[1743704365080,2.64475,1771.1,1771.0,1.4927]
[1743704365282,1.12962,1771.0,1770.9,45.13743]
[1743704365486,2.64482,1771.0,1770.9,47.23506136]
[1743704365676,2.64482,1771.0,1770.9,47.95129055]
[1743704365879,1.12962,1771.0,1770.9,47.95129055]
[1743704366583,1.12962,1771.0,1770.9,47.95143171]
[1743704367585,1.12962,1771.0,1770.9,46.21672919]
[1743704367888,1.12962,1771.0,1770.9,47.34640919]
[1743704368191,1.12962,1771.0,1770.9,47.95064261]
[1743704368582,1.12962,1771.0,1770.9,47.95065022]
[1743704368885,1.12962,1771.0,1770.9,47.95063763]
[1743704369886,3.2078,1771.6,1770.9,54.96926763]
[1743704370088,2.61325,1771.6,1771.5,1.1293]
[1743704370289,0.00845428,1771.7,1771.6,1.12923]
[1743704370488,0.00845428,1771.7,1771.6,1.73351665]
[1743704370692,2.61302,1772.0,1771.9,1.12904]
[1743704371288,1.484,1772.0,1771.9,3.23505855]
[1743704371591,1.12898,1772.0,1771.9,3.23505855]
[1743704371894,1.12898,1772.0,1771.9,3.83880626]
[1743704372394,0.00845428,1772.1,1772.0,1.12898]
[1743704372591,0.00845428,1772.1,1772.0,9.62598]
[1743704372793,0.00845428,1772.1,1772.0,10.22918139]
[1743704373085,0.00845428,1772.1,1772.0,10.34279855]
[1743704373291,1.13737428,1772.1,1772.0,10.34279855]
[1743704373785,1.13737428,1772.1,1772.0,9.21381855]
[1743704374993,1.13737428,1772.1,1772.0,8.497]
[1743704376994,1.13737428,1772.1,1772.0,9.62598]
[1743704377593,1.13737428,1772.1,1772.0,8.497]
[1743704378196,1.13737428,1772.1,1772.0,9.62598]
[1743704379891,0.00845428,1772.1,1772.0,9.62598]
[1743704380290,1.4784,1772.6,1772.2,2.82211]
[1743704380497,1.1287,1772.5,1772.4,1.12871]
[1743704380694,1.1287,1772.5,1772.4,43.43651]
[1743704380890,4.08003,1772.6,1772.5,1.12866]
[1743704381097,4.08003,1772.6,1772.5,1.5078]
[1743704381395,2.60163,1772.6,1772.5,2.63646]
[1743704381896,2.60163,1772.6,1772.5,1.5078]
[1743704382100,1.12866,1772.5,1772.4,41.92867]
[1743704382300,2.57346,1772.5,1772.4,43.31347]
[1743704382600,2.57346,1772.5,1772.4,46.52127]
[1743704385704,2.57346,1772.5,1772.4,5.72127]
[1743704386996,1.12863,1772.6,1772.5,1.12862]
[1743704387208,1.13416616,1772.7,1772.6,1.1286]
[1743704387393,1.13416616,1772.7,1772.6,8.1364]
[1743704387394,0.00563616,1772.7,1772.6,8.1364]
[1743704387706,1.3928,1773.1,1772.7,2.8212]
[1743704387898,1.12836,1773.0,1772.9,1.12837]
[1743704388297,1.12836,1773.0,1772.9,41.92837]
[1743704388497,1.12836,1773.0,1772.9,45.13617]
[1743704389103,1.3928,1773.1,1772.9,45.13617]
[1743704389104,2.52112,1773.1,1773.0,1.12834]
[1743704389407,2.52112,1773.1,1773.0,2.53784]
[1743704389796,2.53499,1773.3,1773.2,1.12822]
[1743704389995,2.52099,1773.3,1773.2,1.12822]
[1743704390208,1.12822,1773.2,1773.1,4.33603]
[1743704390403,1.3928,1773.3,1773.2,1.12822]
[1743704390607,2.52095,1773.3,1773.2,1.4672]
[1743704391102,2.52095,1773.3,1773.2,2.59542]
[1743704391502,2.52095,1773.3,1773.2,1.4672]
[1743704392406,1.12822,1773.2,1773.1,5.03493]
[1743704392606,2.56042,1773.2,1773.1,5.03498]
[1743704392917,2.56042,1773.2,1773.1,3.2078]
[1743704393710,2.56042,1773.2,1773.1,4.33608]
[1743704394215,1.4322,1773.2,1773.1,4.33608]
[1743704395010,1.12814,1773.4,1773.2,1.12822]
[1743704395316,1.12815,1773.3,1773.2,2.65002]
[1743704395714,1.12815,1773.3,1773.2,1.5218]
[1743704396413,1.12822,1773.2,1773.1,3.2078]
[1743704396615,3.97192,1773.2,1773.1,3.2078]
[1743704396812,1.12834,1773.0,1772.9,3.799]
[1743704397412,1.12834,1773.0,1772.9,4.92741]
[1743704397717,2.57146,1773.2,1773.1,1.12828]
[1743704398015,2.5287,1773.3,1773.2,1.12822]
[1743704398217,2.5287,1773.3,1773.2,2.61052]
[1743704398412,2.5287,1773.3,1773.2,1.4823]
[1743704398818,2.5287,1773.3,1773.2,2.61052]
[1743704399021,2.5287,1773.3,1773.2,1.4823]
[1743704399211,1.4005,1773.3,1773.2,2.61052]
[1743704399517,1.4005,1773.3,1773.2,6.40852]
[1743704400218,2.57128,1773.5,1773.2,8.10084]
[1743704400518,1.12809,1773.4,1773.3,5.73799]
[1743704400819,3.95648,1773.5,1773.4,1.12809]
[1743704401118,2.51328,1773.5,1773.4,2.53019]
[1743704401821,1.128,1773.6,1773.5,1.12802]
[1743704402119,1.128,1773.6,1773.5,6.32812]
[1743704402320,1.3852,1773.7,1773.6,1.12796]
[1743704402512,1.3852,1773.7,1773.6,2.56916]
[1743704402913,1.12781,1773.9,1773.6,1.4412]
[1743704403117,1.4988,1774.1,1774.0,1.12771]
[1743704403320,4.09789,1774.1,1774.0,1.12771]
[1743704403615,2.59909,1774.1,1774.0,41.92771]
[1743704403819,1.4714,1774.1,1774.0,43.36891]
[1743704404019,1.12763,1774.2,1774.1,1.12764]
[1743704404220,1.12763,1774.2,1774.1,6.36584]
[1743704404421,1.12763,1774.2,1774.1,5.2382]
[1743704404914,1.12763,1774.2,1774.1,3.797]
[1743704405125,1.12771,1774.0,1773.9,3.21625428]
[1743704405310,1.12771,1774.0,1773.4,3.2078]
[1743704405311,1.12802,1773.5,1773.4,3.2078]
[1743704405619,1.12802,1773.5,1773.4,4.33585]
[1743704405918,1.12802,1773.5,1773.4,3.2078]
[1743704406918,1.87582,1773.5,1773.4,3.2078]
[1743704408516,1.12809,1773.4,1773.3,0.00845428]
[1743704408830,3.35719,1773.4,1773.3,0.00845428]
[1743704417215,2.82039,1773.3,1772.8,1.81954]
[1743704417416,1.12834,1773.0,1772.9,1.31848289]
[1743704417620,1.12834,1773.0,1772.9,42.11848289]
[1743704418125,1.12834,1773.0,1772.9,1.31848289]
[1743704418425,2.56504,1773.0,1772.9,1.31848289]
[1743704418926,1.12834,1773.0,1772.9,5.65469289]
[1743704419121,1.12834,1773.0,1772.9,7.06289289]
[1743704419326,1.12832,1773.1,1773.0,1.12832]
[1743704419523,1.12832,1773.1,1773.0,3.85500289]
[1743704419824,1.12832,1773.1,1773.0,2.72668289]
[1743704420731,1.12832,1773.1,1773.0,2.01112071]
[1743704420932,1.12832,1773.1,1773.0,2.72665168]
[1743704421227,1.12832,1773.1,1773.0,3.85499168]
[1743704421429,1.12828,1773.1,1773.0,3.85496168]
[1743704422022,1.12828,1773.1,1773.0,2.72665168]
[1743704422427,1.12828,1773.1,1773.0,3.85499168]
[1743704422628,1.12828,1773.1,1773.0,3.25207097]
[1743704422827,1.12828,1773.1,1773.0,3.85515511]
[1743704423526,4.7185,1773.4,1773.0,2.72681511]
[1743704423722,1.12822,1773.2,1773.1,7.0828995]
[1743704423922,1.12822,1773.2,1773.1,7.08289507]
[1743704424424,1.12822,1773.2,1773.1,7.79842604]
[1743704424626,1.12822,1773.2,1773.1,7.79840848]
[1743704425030,2.53761,1773.3,1773.2,1.12822]
[1743704425232,2.53761,1773.3,1773.2,2.57392]
[1743704425625,2.53761,1773.3,1773.2,3.30242]
[1743704425833,1.4094,1773.3,1773.2,3.30242]
[1743704426133,1.12806,1773.5,1773.2,6.31335517]
[1743704426335,2.54586428,1773.6,1773.4,1.12809]
[1743704426520,2.54586428,1773.6,1773.3,4.6535]
[1743704426521,2.54586428,1773.6,1773.5,2.57372]
[1743704426725,2.54586428,1773.6,1773.5,1.4457]
[1743704427027,2.54586428,1773.6,1773.5,2.57372]
[1743704427925,2.54586428,1773.6,1773.4,1.12807]
[1743704428232,2.57672,1773.5,1773.4,2.61407]
[1743704428529,7.1565,1773.5,1773.1,4.33605]
[1743704428726,1.12834,1773.0,1772.9,4.33615]
[1743704428925,1.12834,1773.0,1772.9,3.2078]
[1743704429129,1.12834,1773.0,1772.9,5.05180469]
[1743704429525,1.12834,1773.0,1772.9,45.85180469]
[1743704430033,1.12834,1773.0,1772.9,41.51559469]
[1743704430234,2.58154,1773.0,1772.9,0.71559469]
[1743704430428,1.12841,1772.9,1772.8,1.13689428]
[1743704430630,2.56181,1772.9,1772.8,41.93689428]
[1743704430831,2.56181,1772.9,1772.8,42.65238959]
[1743704431133,2.56181,1772.9,1772.8,41.52394959]
[1743704431836,2.56181,1772.9,1772.8,42.65241959]
[1743704432132,2.56181,1772.9,1772.8,0.72394959]
[1743704432335,2.56181,1772.9,1772.8,0.00845428]
[1743704434630,2.56181,1772.9,1772.8,1.54045428]
[1743704435231,2.56181,1772.9,1772.8,0.72445621]
[1743704436530,2.56181,1772.9,1772.8,0.00845428]
[1743704436936,2.56181,1772.9,1772.8,0.05075474]
[1743704437143,1.12866,1772.5,1772.4,0.7222]
[1743704437341,1.12872,1772.4,1772.3,3.2078]
[1743704437640,1.12872,1772.4,1772.3,44.60832564]
[1743704437830,1.12872,1772.4,1772.3,44.60831252]
[1743704438033,1.12872,1772.4,1772.3,44.72451412]
[1743704438228,1.12872,1772.4,1772.3,45.85330412]
[1743704438641,1.12872,1772.4,1772.3,46.48027551]
[1743704438841,1.12872,1772.4,1772.3,45.35148551]
[1743704439238,1.12872,1772.4,1772.3,46.48027551]
[1743704439544,1.12872,1772.4,1772.3,46.81678551]
[1743704440044,1.12872,1772.4,1772.3,47.94557551]
[1743704440534,1.12872,1772.4,1772.3,48.94790671]
[1743704440937,1.13711428,1772.5,1772.4,1.12872]
[1743704441141,1.13711428,1772.5,1772.4,4.95902259]
[1743704441334,1.13711428,1772.5,1772.4,5.67573671]
[1743704441536,1.13711428,1772.5,1772.4,46.47573671]
[1743704441833,1.13711428,1772.5,1772.4,44.34468551]
[1743704442137,1.13711428,1772.5,1772.4,43.71771412]
[1743704442342,1.13711428,1772.5,1772.4,44.34390162]
[1743704443741,1.13711428,1772.5,1772.4,43.71771412]
[1743704443943,1.13711428,1772.5,1772.4,44.34382568]
[1743704444140,1.13711428,1772.5,1772.4,43.71771412]
[1743704444741,1.13711428,1772.5,1772.4,40.8]
[1743704444938,1.12872,1772.4,1772.3,3.2078]
[1743704445141,2.56492,1772.4,1772.3,3.2078]
[1743704445341,2.56492,1772.4,1772.3,46.09354789]
[1743704445843,2.56492,1772.4,1772.3,46.81891383]
[1743704446351,2.56492,1772.4,1772.3,46.81885498]
[1743704446543,2.56492,1772.4,1772.3,46.19296594]
[1743704446744,2.56492,1772.4,1772.3,47.32175594]
[1743704446945,2.56492,1772.4,1772.3,46.19296594]
[1743704447243,2.56492,1772.4,1772.3,47.94759323]
[1743704447445,2.56492,1772.4,1772.3,46.81880323]
[1743704447842,2.56492,1772.4,1772.3,47.94759323]
[1743704448240,2.56492,1772.4,1772.3,47.94751726]
[1743704448947,2.56492,1772.4,1772.3,47.32175594]
[1743704449340,2.56492,1772.4,1772.3,46.19296594]
[1743704450842,2.56492,1772.4,1772.3,45.4676]
[1743704452047,2.56492,1772.4,1772.3,46.19268304]
[1743704452248,2.56492,1772.4,1772.3,41.52508304]
[1743704452446,8.27272,1772.4,1772.3,5.94e-06]
[1743704452750,8.27272,1772.4,1772.2,0.00845428]
[1743704452751,1.12879,1772.3,1772.2,4.28e-06]
[1743704452942,2.53559,1772.3,1772.2,4.28e-06]
[1743704453143,5.03559,1772.3,1772.2,4.28e-06]
[1743704453351,11.4212682,1772.3,1772.2,4.28e-06]
[1743704453647,11.51994447,1772.3,1772.2,4.28e-06]
[1743704453858,1.12917,1771.7,1771.6,40.8]
[1743704454240,2.82293,1771.7,1771.2,0.7005]
[1743704454444,1.12936,1771.4,1771.3,1.4594]
[1743704454644,1.12936,1771.4,1771.3,42.2594]
[1743704454852,2.54006,1771.4,1771.3,42.2594]
[1743704455047,2.54006,1771.4,1771.3,40.8]
[1743704455453,3.23986,1771.4,1771.3,40.8]
[1743704455851,1.12936,1771.4,1771.3,40.8]
[1743704456153,1.13779428,1771.5,1771.4,1.12936]
[1743704456355,1.13779428,1771.5,1771.4,5.79656]
[1743704456652,0.00845428,1771.5,1771.4,5.79656]
[1743704457148,0.00845428,1771.5,1771.4,9.59556]
[1743704457348,0.00845428,1771.5,1771.4,50.39556]
[1743704457753,0.00845428,1771.5,1771.4,51.02006032]
[1743704459351,1.12915,1771.8,1771.7,1.12917]
[1743704459958,1.12915,1771.8,1771.7,3.29547]
[1743704460155,1.12915,1771.8,1771.7,2.1663]
[1743704461757,0.00845428,1771.9,1771.7,5.9653]
[1743704461965,1.12881,1772.3,1772.2,1.12881]
[1743704462164,1.1288,1772.3,1772.2,4.3366]
[1743704462462,1.1288,1772.3,1772.2,3.2078]
[1743704462659,1.1288,1772.3,1772.2,4.33665]
[1743704462860,1.1288,1772.3,1772.2,5.86845]
[1743704463362,1.1288,1772.3,1772.2,4.7396]
[1743704463864,1.12885,1772.2,1772.1,1.483]
[1743704464060,1.12885,1772.2,1772.1,3.0108]
[1743704464364,1.12885,1772.2,1772.1,4.13972]
[1743704465254,1.12885,1772.2,1772.1,3.0108]
[1743704466261,1.12885,1772.2,1771.9,7.0068]
[1743704466568,1.12898,1772.0,1771.9,9.59009]
[1743704466771,1.12898,1772.0,1771.9,8.76132367]
[1743704466953,2.63237,1772.1,1772.0,1.12898]
[1743704467157,0.00845428,1772.4,1772.3,1.12879]
[1743704467352,0.00845428,1772.4,1772.3,4.33659]
[1743704467769,1.12853,1772.7,1772.6,1.12855]
[1743704468067,1.1286,1772.6,1772.5,3.799]
[1743704468368,1.12872,1772.4,1772.3,8.13554]
[1743704468663,1.12872,1772.4,1772.3,49.5610317]
[1743704468866,1.12872,1772.4,1772.3,48.93554]
[1743704469858,1.12872,1772.4,1772.3,48.93559]
[1743704470764,0.00845428,1772.5,1772.4,1.12872]
[1743704471063,0.00845428,1772.5,1772.4,1.75422799]
[1743704471267,1.13711428,1772.5,1772.4,2.47359623]
[1743704471467,1.13711428,1772.5,1772.4,0.71936824]
[1743704471659,1.12872,1772.4,1772.3,48.93557]
[1743704471860,1.12872,1772.4,1772.3,47.8068]
[1743704472061,1.12872,1772.4,1772.3,40.8]
[1743704472266,1.12879,1772.3,1772.2,1.50155428]
[1743704472967,1.12879,1772.3,1772.2,2.63040428]
[1743704473165,1.12879,1772.3,1772.2,3.25601642]
[1743704473563,1.12879,1772.3,1772.2,1.50155428]
[1743704473760,1.12879,1772.3,1772.2,2.63040428]
[1743704473961,1.12879,1772.3,1772.2,3.97548335]
[1743704474367,1.12879,1772.3,1772.2,2.22102543]
[1743704474565,1.12879,1772.3,1772.2,2.63040428]
[1743704474771,1.12879,1772.3,1772.2,3.25603299]
[1743704475158,1.13714428,1772.5,1772.4,1.12872]
[1743704475362,0.00845428,1772.5,1772.4,4.96207022]
[1743704475565,1.13711428,1772.5,1772.4,9.47953625]
[1743704475970,0.00845428,1772.5,1772.4,9.47953625]
[1743704476171,1.13711428,1772.5,1772.4,50.27953625]
[1743704476564,1.13711428,1772.5,1772.4,49.15081625]
[1743704476879,1.13711428,1772.5,1772.4,49.55999196]
[1743704477170,1.13711428,1772.5,1772.4,48.43123451]
[1743704477474,1.13711428,1772.5,1772.4,49.55996232]
[1743704477773,1.13711428,1772.5,1772.4,50.27928653]
[1743704477967,1.13711428,1772.5,1772.4,45.94276653]
[1743704478170,1.13711428,1772.5,1772.4,0.71932421]
[1743704478560,1.12872,1772.4,1772.3,43.42648]
[1743704479169,1.12872,1772.4,1772.3,42.2977]
[1743704479766,1.12879,1772.3,1772.2,11.26955428]
[1743704480166,1.12879,1772.3,1772.2,53.19840428]
[1743704480367,1.12879,1772.3,1772.2,53.56725428]
[1743704480980,1.12879,1772.3,1772.2,48.72610428]
[1743704481368,1.12879,1772.3,1772.2,47.59725428]
[1743704481769,1.12879,1772.3,1772.2,48.72610428]
[1743704482378,0.00845428,1772.5,1772.4,1.12872]
[1743704482576,0.00845428,1772.5,1772.4,5.9625776]
[1743704482777,1.13711428,1772.5,1772.4,4.96195491]
[1743704482970,1.13711428,1772.5,1772.4,5.68124215]
[1743704483165,1.13711428,1772.5,1772.4,1.34472215]
[1743704483371,1.13711428,1772.5,1772.4,0.71928724]
[1743704483576,1.12872,1772.4,1772.3,2.64787]
[1743704483882,1.12872,1772.4,1772.3,3.99268705]
[1743704484081,0.00845428,1772.5,1772.4,1.12872]
[1743704484278,0.00845428,1772.5,1772.4,3.27328575]
[1743704484481,1.89307,1772.9,1772.8,1.12847]
[1743704484683,1.12841,1772.9,1772.8,4.33627]
[1743704484873,6.02838,1773.2,1772.9,1.12838]
[1743704484874,1.12839,1773.0,1772.9,1.12838]
[1743704485073,1.12839,1773.0,1772.9,2.63528]
[1743704485273,1.12839,1773.0,1772.9,1.5069]
[1743704486075,1.12839,1773.0,1772.9,2.63531]
[1743704486476,2.58291,1773.1,1773.0,1.12834]
[1743704486671,0.7308,1773.3,1773.0,8.5127]
[1743704486876,3.32037,1773.5,1773.2,3.2078]
[1743704487076,1.1281,1773.4,1773.3,3.799]
[1743704487380,1.1281,1773.4,1773.3,46.1059]
[1743704487381,2.5827,1773.4,1773.3,46.1059]
[1743704487580,2.5827,1773.4,1773.3,46.73145598]
[1743704487877,2.5827,1773.4,1773.3,47.4508316]
[1743704488079,3.9386,1773.7,1773.5,1.12802]
[1743704488275,1.12796,1773.6,1773.5,4.33582]
[1743704488675,1.12796,1773.6,1773.5,3.2078]
[1743704488874,1.12802,1773.5,1773.4,2.52294]
[1743704489179,4.5916,1774.0,1773.7,1.12788]
[1743704489371,1.12786,1773.8,1773.6,8.1507]
[1743704489575,1.12786,1773.8,1773.7,1.3949]
[1743704489879,1.12783,1773.8,1773.7,1.3949]
[1743704490979,1.12781,1773.9,1773.7,2.5228]
[1743704491177,2.58911,1773.9,1773.7,2.5228]
[1743704491384,1.12783,1773.8,1773.7,1.3949]
[1743704491586,2.58913,1773.8,1773.7,1.3949]
[1743704492081,2.58913,1773.8,1773.7,2.5228]
[1743704492279,2.58913,1773.8,1773.7,1.3949]
[1743704494284,1.1279,1773.7,1773.6,7.0228]
[1743704494588,2.5411,1773.7,1773.6,7.0228]
[1743704495681,2.5411,1773.7,1773.6,8.15076]
[1743704495982,2.5411,1773.7,1773.6,7.0228]
[1743704497891,2.5411,1773.7,1773.6,4.33576]
[1743704498083,1.4132,1773.7,1773.6,4.33576]
[1743704498285,2.5411,1773.7,1773.6,5.80556]
[1743704498984,1.12779,1773.9,1773.6,7.49747]
[1743704499187,2.60599,1773.9,1773.7,1.4698]
[1743704499386,1.12783,1773.8,1773.7,5.8055]
[1743704499586,1.4782,1773.8,1773.7,5.8055]
[1743704499787,2.60603,1773.8,1773.7,5.8055]
[1743704499987,2.60603,1773.8,1773.7,3.2078]
[1743704500178,2.60603,1773.8,1773.7,4.3357]
[1743704500382,2.60603,1773.8,1773.7,3.2078]
[1743704501192,1.12796,1773.6,1773.5,7.0038]
[1743704501394,4.08545,1773.7,1773.6,1.12796]
[1743704501691,2.58795,1773.7,1773.6,2.64206]
[1743704501990,1.12781,1773.9,1773.8,1.1278]
[1743704502184,1.12781,1773.9,1773.8,8.1326]
[1743704502679,1.12781,1773.9,1773.8,9.6467]
[1743704502884,1.12781,1773.9,1773.8,8.5189]
[1743704503284,1.12781,1773.9,1773.8,9.64673]
[1743704503889,2.58773,1774.0,1773.9,1.12777]
[1743704504085,2.58773,1774.0,1773.9,2.51347]
[1743704504391,1.12768,1774.1,1774.0,1.12771]
[1743704504594,4.14758,1774.2,1774.1,1.12764]
[1743704504787,1.12753,1774.3,1774.2,1.12753]
[1743704504990,2.65,1774.4,1774.3,1.12752]
[1743704505189,1.12753,1774.3,1774.2,1.12753]
[1743704505491,1.12753,1774.3,1774.2,5.72103]
[1743704505687,1.12753,1774.3,1774.2,4.5935]
[1743704505893,1.12753,1774.3,1774.2,5.72108]
[1743704507895,1.12753,1774.3,1774.2,4.5935]
[1743704508286,1.12753,1774.3,1774.2,3.2078]
[1743704508687,1.12753,1774.3,1774.2,4.7139]
[1743704508891,1.12753,1774.3,1774.2,2.63368]
[1743704509083,1.12753,1774.3,1774.2,1.5061]
[1743704509694,1.12753,1774.3,1774.2,2.63368]
[1743704509996,1.12753,1774.3,1774.2,1.5061]
[1743704510387,1.12753,1774.3,1774.2,2.63368]
[1743704510699,1.12753,1774.3,1774.2,1.5061]
[1743704511086,1.12758,1774.2,1774.1,3.80445428]
[1743704511290,1.12758,1774.2,1774.1,4.93209428]
[1743704511596,1.12758,1774.2,1774.1,5.28635428]
[1743704512194,1.12758,1774.2,1774.1,3.80445428]
[1743704512497,1.12758,1774.2,1774.1,0.00845428]
[1743704512894,2.63938,1774.2,1774.1,0.00845428]
[1743704513399,2.63938,1774.2,1774.1,1.7606474]
[1743704513595,2.63525,1774.3,1774.2,1.12758]
[1743704513901,2.63525,1774.3,1774.1,1.85822907]
[1743704513902,1.12758,1774.2,1774.1,1.85822907]
[1743704514195,2.63526,1774.3,1774.2,1.12758]
[1743704514385,2.63526,1774.3,1774.2,1.75208627]
[1743704514589,2.63526,1774.3,1774.2,1.12758]
[1743704514796,2.63526,1774.3,1774.2,2.47495006]
[1743704515401,2.63526,1774.3,1774.2,1.34737006]
[1743704515791,2.63526,1774.3,1774.2,2.47495006]
[1743704516196,1.88595,1774.5,1774.2,8.3755678]
[1743704516396,1.12748,1774.4,1774.3,1.75264527]
[1743704516596,1.12748,1774.4,1774.3,5.54664527]
[1743704516801,1.12748,1774.4,1774.3,45.21917527]
[1743704516997,2.51438,1774.4,1774.3,45.21917527]
[1743704517197,2.51438,1774.4,1774.3,47.06889006]
[1743704517901,1.12743,1774.5,1774.4,1.12745]
[1743704518090,0.7533,1774.6,1774.5,1.12739]
[1743704518091,1.12737,1774.6,1774.5,1.12739]
[1743704518296,1.12737,1774.6,1774.5,2.4753535]
[1743704518598,1.12737,1774.6,1774.5,2.47525071]
[1743704520596,2.54002,1774.7,1774.6,1.12733]
[1743704520797,2.54002,1774.7,1774.6,1.75299592]
[1743704521091,2.54002,1774.7,1774.6,0.62566592]
[1743704521502,1.12733,1774.6,1774.5,1.12734]
[1743704521894,1.12733,1774.6,1774.5,1.75271872]
[1743704522097,1.12733,1774.6,1774.5,2.47594232]
[1743704522402,1.12722,1774.8,1774.7,1.12722]
[1743704522591,1.12722,1774.8,1774.7,0.62537872]
[1743704522795,1.12722,1774.8,1774.7,2.47586232]
[1743704523097,1.12722,1774.8,1774.7,1.34860232]
[1743704523296,1.12722,1774.8,1774.7,0.7232236]
[1743704523495,1.12726,1774.7,1774.6,3.794]
[1743704523703,1.12739,1774.5,1774.4,5.2467]
[1743704523900,4.33519,1774.5,1774.4,5.2467]
[1743704524098,4.33519,1774.5,1774.4,1.4527]
[1743704524292,1.12758,1774.2,1774.1,1.13605428]
[1743704524492,1.4559,1774.4,1774.1,1.63441392]
[1743704524692,4.33534,1774.3,1774.2,41.42536172]
[1743704524897,4.33534,1774.3,1774.2,41.52316518]
[1743704525204,6.83534,1774.3,1774.2,0.72316518]
[1743704525594,1.12758,1774.2,1774.1,0.00845428]
[1743704525902,1.1279,1773.7,1773.6,2.58791]
[1743704526100,1.1279,1773.7,1773.6,43.55531951]
[1743704526298,1.12788,1773.8,1773.7,1.12788]
[1743704526498,1.12788,1773.8,1773.7,1.75379936]
[1743704526700,1.4559,1773.9,1773.8,1.12783]
[1743704526898,3.2078,1774.0,1773.9,1.12777]
[1743704527202,1.12771,1774.0,1773.9,0.62594569]
[1743704527397,1.12771,1774.0,1773.9,41.42594569]
[1743704527598,1.12771,1774.0,1773.9,43.2777761]
[1743704527800,1.12771,1774.0,1773.9,42.1500061]
[1743704528003,1.12771,1774.0,1773.9,42.14996905]
[1743704528200,2.62461,1774.0,1773.9,42.14996905]
[1743704528692,2.62461,1774.0,1773.9,43.60706905]
[1743704528895,3.21625428,1774.1,1773.9,43.60706905]
[1743704529095,1.12771,1774.0,1773.9,41.52385509]
[1743704529300,1.13613428,1774.1,1774.0,1.12771]
[1743704529604,1.13613428,1774.1,1774.0,1.7539102]
[1743704529799,1.13613428,1774.1,1774.0,0.6262002]
[1743704530004,1.13613428,1774.1,1774.0,1.35036455]
[1743704530502,1.13613428,1774.1,1774.0,0.72416435]
[1743704531005,3.27693428,1774.1,1774.0,0.72416435]
[1743704531403,1.12777,1773.9,1773.8,4.92083]
[1743704531603,1.12777,1773.9,1773.8,7.2743501]
[1743704532001,1.12777,1773.9,1773.8,6.1465201]
[1743704532606,1.12773,1774.0,1773.9,1.12777]
[1743704532902,1.12773,1774.0,1773.9,1.3510393]
[1743704533102,1.12773,1774.0,1773.9,1.35104571]
[1743704533907,1.12773,1774.0,1773.9,0.7245008]
[1743704534300,1.12773,1774.0,1773.9,43.15379207]
[1743704534498,1.12773,1774.0,1773.9,42.15116155]
[1743704535296,1.12773,1774.0,1773.9,41.5245008]
[1743704535498,1.12773,1774.0,1773.9,42.1510968]
[1743704536198,4.33553,1774.0,1773.9,42.1510968]
[1743704536409,1.12773,1774.0,1773.9,41.5245008]
[1743704536603,1.12773,1774.0,1773.9,42.15109092]
[1743704536998,0.00845428,1774.1,1774.0,1.12771]
[1743704537201,0.00845428,1774.1,1774.0,4.33551]
[1743704537401,0.00845428,1774.1,1774.0,6.68886049]
[1743704537609,0.00845428,1774.1,1774.0,47.48900422]
[1743704537807,0.00845428,1774.1,1774.0,49.98900422]
[1743704538103,1.13609428,1774.1,1774.0,43.15349422]
[1743704538305,1.13609428,1774.1,1774.0,42.15097388]
[1743704538509,1.13609428,1774.1,1774.0,43.27868388]
[1743704538707,1.13609428,1774.1,1774.0,43.15352085]
[1743704538902,1.13609428,1774.1,1774.0,42.15097388]
[1743704539811,2.63319428,1774.1,1774.0,0.7245008]
[1743704540003,2.63319428,1774.1,1774.0,1.35111972]
[1743704540203,2.63319428,1774.1,1774.0,42.15111972]
[1743704540507,2.63319428,1774.1,1774.0,41.5245008]
[1743704541007,2.63319428,1774.1,1774.0,42.15107689]
[1743704541512,2.63319428,1774.1,1774.0,41.5245008]
[1743704542611,2.63319428,1774.1,1774.0,40.8]
[1743704543314,2.63319428,1774.1,1774.0,42.55426499]
[1743704543715,2.63319428,1774.1,1774.0,43.27876026]
[1743704545303,0.00845428,1774.1,1774.0,43.27876026]
[1743704545507,6.78694,1774.6,1774.1,2.81898]
[1743704545708,1.12748,1774.4,1774.3,1.12744]
[1743704545904,9.02734,1774.6,1774.3,1.12744]
[1743704545905,2.62653,1774.5,1774.4,1.12745]
[1743704546416,2.62653,1774.5,1774.4,1.75384585]
[1743704546617,2.62653,1774.5,1774.4,1.35069789]
[1743704548118,2.62653,1774.5,1774.4,0.72430204]
[1743704548417,2.62653,1774.5,1774.4,1.35063587]
[1743704548713,2.62653,1774.5,1774.4,2.14760204]
[1743704549019,1.12754,1774.3,1774.2,1.12754]
[1743704549314,3.2078,1774.9,1774.4,2.81864]
[1743704549516,1.12714,1774.9,1774.8,1.12715]
[1743704549710,1.12713,1774.9,1774.8,4.92015]
[1743704549915,1.12713,1774.9,1774.8,5.84252242]
[1743704550119,2.53033,1774.9,1774.8,5.9404892]
[1743704550312,2.53033,1774.9,1774.8,4.5171892]